bitfinex/quotes_SOLUSD_20241216
["timestamp","ask_amount","ask_price","bid_price","bid_amount"]
[1734315261166,1.82211618,223.89,223.78,7.49808436]
[1734315261589,11.1666,223.88,223.78,7.49808436]
[1734315261766,0.83779271,223.87,223.77,0.5360558]
[1734315261984,0.83779271,223.87,223.77,8.03414016]
[1734315263000,11.1676,223.86,223.77,0.5360558]
[1734315263204,0.83790253,223.85,223.77,8.03414016]
[1734315263804,0.83790253,223.85,223.78,7.49808436]
[1734315264532,0.83790253,223.85,223.77,0.5360558]
[1734315264716,0.83790253,223.85,223.77,8.03414016]
[1734315264907,0.83790253,223.85,223.78,7.49808436]
[1734315265890,0.83790253,223.85,223.77,0.5360558]
[1734315266090,0.83790253,223.85,223.77,8.03414016]
[1734315267033,0.83790253,223.85,223.78,7.49808436]
[1734315268028,0.83790253,223.85,223.77,8.03414016]
[1734315268734,0.83790253,223.85,223.78,7.49808436]
[1734315270472,0.83790253,223.85,223.81,7.49808436]
[1734315270629,0.83771269,223.88,223.82,7.49808436]
[1734315270828,0.83771269,223.88,223.81,7.49808436]
[1734315271840,0.83771269,223.88,223.82,7.49808436]
[1734315272142,0.83771269,223.88,223.83,7.49808436]
[1734315272527,0.83771269,223.88,223.82,7.49808436]
[1734315274443,0.83771269,223.88,223.81,7.49808436]
[1734315275733,0.83771269,223.88,223.82,7.49808436]
[1734315277537,0.83771269,223.88,223.81,7.49808436]
[1734315277937,0.83771269,223.88,223.8,7.49808436]
[1734315278140,12.00451269,223.88,223.8,7.49808436]
[1734315282271,12.00451269,223.88,223.77,0.5360558]
[1734315282449,12.00451269,223.88,223.8,7.49808436]
[1734315283745,12.00451269,223.88,223.81,7.49808436]
[1734315284173,12.00451269,223.88,223.77,0.5360558]
[1734315284369,12.00451269,223.88,223.81,7.49808436]
[1734315285593,12.00451269,223.88,223.8,7.49808436]
[1734315287664,12.00451269,223.88,223.77,0.5360558]
[1734315288089,12.00451269,223.88,223.8,7.49808436]
[1734315291694,12.00451269,223.88,223.82,7.49808436]
[1734315291695,0.83771269,223.88,223.82,7.49808436]
[1734315293486,0.83771269,223.88,223.77,0.5360558]
[1734315293487,0.83771269,223.88,223.81,7.49808436]
[1734315295003,0.83771269,223.88,223.77,0.5360558]
[1734315295210,0.83771269,223.88,223.81,7.49808436]
[1734315296021,0.83771269,223.88,223.8,7.49808436]
[1734315298209,0.83771269,223.88,223.77,0.5360558]
[1734315298389,0.83771269,223.88,223.8,7.49808436]
[1734315300623,0.83771269,223.88,223.72,2.17579485]
[1734315300624,0.83771269,223.88,223.72,0.67009485]
[1734315300625,1.6262,223.8,223.72,0.67009485]
[1734315300839,25.25278572,223.79,223.6,16.43898436]
[1734315301010,3.85513706,223.78,223.6,16.43898436]
[1734315301227,0.8383515,223.77,223.6,7.49808436]
[1734315301396,0.8383515,223.77,223.54,4.84556462]
[1734315301600,13.62566952,223.77,223.59,7.49808436]
[1734315301797,11.1726,223.76,223.59,7.49808436]
[1734315301999,0.83838483,223.75,223.59,7.49808436]
[1734315302239,0.83838483,223.75,223.54,4.84556462]
[1734315302536,0.83838483,223.75,223.65,7.49808436]
[1734315302698,0.83838483,223.75,223.67,7.49808436]
[1734315303118,0.83813749,223.78,223.67,7.49808436]
[1734315303320,0.83813749,223.78,223.69,7.49808436]
[1734315303508,0.83813749,223.78,223.71,7.49808436]
[1734315304246,0.83813749,223.78,223.64,0.67039989]
[1734315304417,0.83813749,223.78,223.68,7.49808436]
[1734315306003,6.0244,223.79,223.68,7.49808436]
[1734315306219,6.8623483,223.79,223.68,7.49808436]
[1734315306431,6.8623483,223.79,223.64,0.67039989]
[1734315306623,6.8623483,223.79,223.69,7.49808436]
[1734315307428,6.8623483,223.79,223.64,0.67039989]
[1734315307610,6.8623483,223.79,223.69,7.49808436]
[1734315308310,13.87096044,223.85,223.71,7.49808436]
[1734315308311,7.13938415,223.84,223.71,7.49808436]
[1734315310216,7.13938415,223.84,223.73,7.49808436]
[1734315310905,7.13938415,223.84,223.75,7.49808436]
[1734315311241,6.3014,223.84,223.75,7.49808436]
[1734315312922,0.83773014,223.83,223.7,0.67038732]
[1734315313112,0.83773014,223.83,223.73,7.49808436]
[1734315314925,6.3014,223.84,223.73,7.49808436]
[1734315315129,7.13915882,223.84,223.73,7.49808436]
[1734315318939,7.13915882,223.84,223.65,6.2352]
[1734315319138,7.13915882,223.84,223.69,7.49808436]
[1734315319947,11.1691,223.83,223.64,0.6702324]
[1734315320146,0.83802241,223.82,223.64,0.6702324]
[1734315320352,0.83802241,223.82,223.68,7.49808436]
[1734315321446,11.1701,223.81,223.66,7.49808436]
[1734315321626,0.83809428,223.8,223.66,7.49808436]
[1734315321821,1.5366,223.79,223.63,1.5414]
[1734315322026,6.0896,223.77,223.63,1.5414]
[1734315322254,0.83817421,223.76,223.64,7.49808436]
[1734315322626,0.83817421,223.76,223.64,8.16862402]
[1734315323044,0.83817421,223.76,223.66,7.49808436]
[1734315330040,6.0896,223.77,223.67,7.49808436]
[1734315330041,6.9276833,223.77,223.67,7.49808436]
[1734315330365,6.0896,223.77,223.7,7.49808436]
[1734315330570,6.0896,223.77,223.69,7.49808436]
[1734315331171,6.0896,223.77,223.68,7.49808436]
[1734315331550,0.83801601,223.76,223.65,0.67036054]
[1734315331749,0.83801601,223.76,223.65,7.49808436]
[1734315332250,0.83801601,223.76,223.66,7.49808436]
[1734315332968,0.83801601,223.76,223.61,0.6704128]
[1734315333160,0.83801601,223.76,223.66,7.49808436]
[1734315333559,0.83801601,223.76,223.65,7.49808436]
[1734315333962,0.83801601,223.76,223.61,0.6704128]
[1734315334163,0.83801601,223.76,223.65,7.49808436]
[1734315335579,0.83801601,223.76,223.66,7.49808436]
[1734315335962,0.83801601,223.76,223.65,7.49808436]
[1734315337661,0.83801601,223.76,223.66,7.49808436]
[1734315339567,0.83801601,223.76,223.67,7.49808436]
[1734315339866,6.92767446,223.77,223.68,7.49808436]
[1734315340191,6.92767446,223.77,223.67,7.49808436]
[1734315341488,6.0896,223.77,223.67,7.49808436]
[1734315342387,6.92762291,223.77,223.67,7.49808436]
[1734315342590,6.92762291,223.77,223.65,20.31956215]
[1734315342791,6.92762291,223.77,223.67,7.49808436]
[1734315342995,6.92762291,223.77,223.65,19.64906641]
[1734315343295,6.92762291,223.77,223.65,27.14715077]
[1734315345367,11.1726,223.76,223.65,19.64906641]
[1734315345565,0.83816722,223.75,223.65,19.64906641]
[1734315346490,12.8211,223.74,223.65,19.64906641]
[1734315346787,12.8211,223.74,223.57,4.91701202]
[1734315346788,6.2129,223.72,223.57,7.49808436]
[1734315347098,0.83835516,223.71,223.57,7.49808436]
[1734315350076,12.01355516,223.71,223.57,7.49808436]
[1734315350486,12.01355516,223.71,223.57,0.67068538]
[1734315350675,12.01355516,223.71,223.58,7.49808436]
[1734315351397,8.0076,223.7,223.55,0.67066282]
[1734315351690,8.0076,223.7,223.54,0.5360558]
[1734315351691,8.0076,223.68,223.54,8.03414016]
[1734315351897,0.83844916,223.67,223.56,7.49808436]
[1734315352198,0.83844916,223.67,223.55,7.49808436]
[1734315352870,0.83844916,223.67,223.56,7.49808436]
[1734315355704,0.83844916,223.67,223.54,0.5360558]
[1734315355705,0.83844916,223.67,223.55,7.49808436]
[1734315356589,0.83844916,223.67,223.56,7.49808436]
[1734315358417,0.83844916,223.67,223.54,1.2068224]
[1734315358715,0.83844916,223.67,223.57,7.49808436]
[1734315359618,0.83844916,223.67,223.56,7.49808436]
[1734315362689,8.0076,223.68,223.59,7.49808436]
[1734315363423,0.8383489,223.67,223.59,7.49808436]
[1734315363622,8.0076,223.68,223.59,7.49808436]
[1734315364332,8.0076,223.68,223.58,7.49808436]
[1734315364900,0.83835988,223.67,223.54,1.20673492]
[1734315365208,0.83835988,223.67,223.56,7.49808436]
[1734315365625,0.83835988,223.67,223.54,1.20673492]
[1734315365626,0.83835988,223.67,223.54,0.5360558]
[1734315365805,11.1776,223.66,223.54,8.03414016]
[1734315366111,0.83860159,223.65,223.54,0.5360558]
[1734315366494,0.83860159,223.65,223.54,8.03414016]
[1734315368428,11.1776,223.66,223.57,7.49808436]
[1734315368607,0.83852968,223.67,223.58,7.49808436]
[1734315369623,0.83852968,223.67,223.57,7.49808436]
[1734315369936,0.83852968,223.67,223.56,7.49808436]
[1734315371317,0.83852968,223.67,223.57,7.49808436]
[1734315372230,0.83852968,223.67,223.58,7.49808436]
[1734315372410,0.83852968,223.67,223.54,1.20683244]
[1734315372611,0.83852968,223.67,223.58,7.49808436]
[1734315374914,0.83852968,223.67,223.56,7.49808436]
[1734315375244,0.83852968,223.67,223.55,7.49808436]
[1734315375447,12.01572968,223.67,223.55,7.49808436]
[1734315376927,12.01572968,223.67,223.54,0.5360558]
[1734315377238,12.01572968,223.67,223.55,7.49808436]
[1734315377438,12.01572968,223.67,223.54,0.5360558]
[1734315377439,12.01572968,223.67,223.57,7.49808436]
[1734315380760,12.01572968,223.67,223.56,7.49808436]
[1734315380937,12.01572968,223.67,223.54,1.20685967]
[1734315381136,12.01572968,223.67,223.56,7.49808436]
[1734315382428,12.01572968,223.67,223.54,0.5360558]
[1734315382634,12.01572968,223.67,223.55,7.49808436]
[1734315382867,12.01572968,223.67,223.57,7.49808436]
[1734315383367,12.01572968,223.67,223.58,7.49808436]
[1734315383527,12.01572968,223.67,223.59,7.49808436]
[1734315383728,0.83852968,223.67,223.6,7.49808436]
[1734315383955,8.0076,223.68,223.61,7.49808436]
[1734315384155,0.8383658,223.67,223.59,7.49808436]
[1734315384363,0.8383658,223.67,223.54,1.20686614]
[1734315384364,0.8383658,223.67,223.58,7.49808436]
[1734315385758,0.8383658,223.67,223.59,7.49808436]
[1734315386742,0.8383658,223.67,223.54,1.20686614]
[1734315386933,0.8383658,223.67,223.59,7.49808436]
[1734315388054,0.8383658,223.67,223.54,1.20686614]
[1734315388357,0.8383658,223.67,223.55,7.49808436]
[1734315390043,0.8383658,223.67,223.54,0.5360558]
[1734315390246,0.8383658,223.67,223.55,7.49808436]
[1734315390937,0.8383658,223.67,223.54,0.5360558]
[1734315391141,0.8383658,223.67,223.55,7.49808436]
[1734315391946,11.1776,223.66,223.54,0.5360558]
[1734315392165,0.8386215,223.65,223.54,0.5360558]
[1734315398275,1.5707,223.63,223.54,0.5360558]
[1734315398449,0.83866829,223.62,223.54,0.5360558]
[1734315405572,11.1801,223.61,223.54,0.5360558]
[1734315405774,7.37786555,223.6,223.54,0.5360558]
[1734315411871,1.5738,223.59,223.54,0.5360558]
[1734315412185,6.373,223.57,223.54,5.58e-05]
[1734315412513,0.83906096,223.56,223.54,5.58e-05]
[1734315416694,11.1831,223.55,223.54,5.58e-05]
[1734315417975,11.1831,223.55,223.43,7.49808436]
[1734315418262,11.1841,223.53,223.43,7.49808436]
[1734315418581,0.83907389,223.52,223.43,7.49808436]
[1734315419383,0.83907389,223.52,223.42,7.49808436]
[1734315419691,0.83907389,223.52,223.41,7.49808436]
[1734315420186,11.1851,223.51,223.41,7.49808436]
[1734315420391,0.83910336,223.5,223.41,7.49808436]
[1734315423200,0.83910336,223.5,223.4,18.34705483]
[1734315423410,0.83910336,223.5,223.41,7.49808436]
[1734315423574,11.1866,223.48,223.4,18.34705483]
[1734315423774,0.83922601,223.47,223.4,18.34705483]
[1734315425766,0.83922601,223.47,223.34,7.49808436]
[1734315425767,11.1876,223.46,223.34,7.49808436]
[1734315425972,0.8393411,223.45,223.34,7.49808436]
[1734315426280,0.8393411,223.45,223.32,0.5360558]
[1734315426472,7.9899,223.44,223.32,0.5360558]
[1734315426796,0.83953689,223.43,223.32,0.5360558]
[1734315427589,11.1896,223.42,223.32,0.5360558]
[1734315427818,0.83958112,223.41,223.32,0.5360558]
[1734315429271,0.83958112,223.41,223.32,8.03414016]
[1734315430388,0.83958112,223.41,223.33,7.49808436]
[1734315431496,0.83958112,223.41,223.32,0.5360558]
[1734315431811,0.83958112,223.41,223.32,8.03414016]
[1734315433387,0.83958112,223.41,223.32,0.5360558]
[1734315435108,11.1906,223.4,223.32,0.5360558]
[1734315435309,0.83961735,223.39,223.32,0.5360558]
[1734315439336,0.83961735,223.39,223.19,5.0]
[1734315439337,6.2093,223.36,223.13,34.93421949]
[1734315439625,6.2093,223.36,223.14,0.67189088]
[1734315439626,0.8398636,223.35,223.14,0.67189088]
[1734315439838,1.5145,223.34,223.17,7.49808436]
[1734315439988,0.83992165,223.33,223.17,7.49808436]
[1734315440394,0.83992165,223.33,223.18,7.49808436]
[1734315440621,0.83992165,223.33,223.16,7.49808436]
[1734315440622,6.4839,223.32,223.16,7.49808436]
[1734315440794,0.84004454,223.31,223.13,28.16971949]
[1734315440992,1.6126,223.3,223.13,28.16971949]
[1734315441205,0.84015301,223.29,223.13,28.16971949]
[1734315441407,0.84015301,223.29,223.16,7.49808436]
[1734315442031,0.84015301,223.29,223.18,7.49808436]
[1734315442190,0.84015301,223.29,223.14,8.51465436]
[1734315442388,0.84015301,223.29,223.18,7.49808436]
[1734315442606,0.84015301,223.29,223.14,7.8426]
[1734315442607,0.84015301,223.29,223.19,7.49808436]
[1734315442990,0.84015301,223.29,223.13,28.84170627]
[1734315443190,0.84015301,223.29,223.19,7.49808436]
[1734315444495,0.84015301,223.29,223.15,0.67192077]
[1734315444702,0.84015301,223.29,223.2,7.49808436]
[1734315444910,0.84015301,223.29,223.22,7.49808436]
[1734315445113,6.4839,223.32,223.25,7.49808436]
[1734315445325,6.4839,223.32,223.17,0.67185389]
[1734315445326,0.83981736,223.34,223.26,7.49808436]
[1734315445528,0.83981736,223.34,223.27,7.49808436]
[1734315445693,6.6103,223.37,223.25,5.0863101]
[1734315446013,0.83950022,223.36,223.28,7.49808436]
[1734315446225,0.83950022,223.36,223.27,7.49808436]
[1734315446825,0.83950022,223.36,223.25,5.0863101]
[1734315447526,0.83950022,223.36,223.29,7.49808436]
[1734315447730,6.6103,223.37,223.29,7.49808436]
[1734315448023,6.6103,223.37,223.3,7.49808436]
[1734315448227,6.6103,223.37,223.25,5.7579368]
[1734315448522,0.83950595,223.36,223.27,7.49808436]
[1734315449498,0.83950595,223.36,223.25,5.0863101]
[1734315449728,0.83950595,223.36,223.27,7.49808436]
[1734315449917,0.83950595,223.36,223.25,5.0863101]
[1734315450120,0.83950595,223.36,223.21,7.02595098]
[1734315450300,0.83950595,223.36,223.25,7.49808436]
[1734315450500,0.83950595,223.36,223.27,7.49808436]
[1734315450802,0.83950595,223.36,223.22,11.16170086]
[1734315450803,0.83950595,223.36,223.29,7.49808436]
[1734315451001,0.83949451,223.36,223.22,21.24140086]
[1734315451215,0.83949451,223.36,223.26,7.49808436]
[1734315452102,0.83949451,223.36,223.28,7.49808436]
[1734315452519,0.83949451,223.36,223.22,21.24140086]
[1734315452824,1.5573,223.35,223.22,5.0863101]
[1734315453039,1.5573,223.35,223.21,7.49808436]
[1734315453040,0.83982217,223.34,223.21,7.49808436]
[1734315453238,0.83982217,223.34,223.18,10.0813]
[1734315453528,0.83982217,223.34,223.21,7.49808436]
[1734315454039,0.83982217,223.34,223.22,7.49808436]
[1734315454923,0.83982217,223.34,223.17,5.0863101]
[1734315455431,11.1941,223.33,223.22,7.49808436]
[1734315455602,0.83993451,223.32,223.22,7.49808436]
[1734315457624,0.83993451,223.32,223.17,5.0863101]
[1734315457932,0.83993451,223.32,223.22,7.49808436]
[1734315458133,0.83993451,223.32,223.17,5.0863101]
[1734315458833,0.83993451,223.32,223.22,7.49808436]
[1734315459002,0.83993451,223.32,223.17,5.0863101]
[1734315459201,0.83993451,223.32,223.21,7.49808436]
[1734315459927,0.83993451,223.32,223.17,5.0863101]
[1734315460132,12.03512631,223.31,223.17,5.0863101]
[1734315460311,6.5164,223.3,223.19,7.49808436]
[1734315460509,0.84006573,223.29,223.19,7.49808436]
[1734315462338,12.8575,223.28,223.18,7.49808436]
[1734315462642,0.84011701,223.27,223.13,4.89809542]
[1734315462827,0.84011701,223.27,223.18,7.49808436]
[1734315463007,0.84011701,223.27,223.19,7.49808436]
[1734315464016,0.84011701,223.27,223.13,4.89809542]
[1734315464017,0.84011701,223.27,223.21,7.49808436]
[1734315464447,0.84011701,223.27,223.23,7.49808436]
[1734315466151,0.84011701,223.27,223.21,7.49808436]
[1734315466814,0.84011701,223.27,223.14,10.75516799]
[1734315467032,0.84011701,223.27,223.2,7.49808436]
[1734315467433,0.84011701,223.27,223.18,7.49808436]
[1734315467910,0.84011701,223.27,223.13,4.89809542]
[1734315468108,6.618,223.26,223.13,4.89809542]
[1734315468312,0.84012372,223.25,223.16,7.49808436]
[1734315469245,0.84012372,223.25,223.14,7.49808436]
[1734315470333,0.84012372,223.25,223.13,7.49808436]
[1734315470541,0.84012372,223.25,223.14,7.49808436]
[1734315470732,0.84012372,223.25,223.1,16.84818556]
[1734315471117,0.84012372,223.25,223.15,7.49808436]
[1734315471531,0.84012372,223.25,223.17,7.49808436]
[1734315471838,0.84012372,223.25,223.16,7.49808436]
[1734315472136,0.84012372,223.25,223.15,7.49808436]
[1734315472526,0.84012372,223.25,223.16,7.49808436]
[1734315473240,0.84012372,223.25,223.15,7.49808436]
[1734315473539,0.84012372,223.25,223.14,7.49808436]
[1734315473838,0.84012372,223.25,223.1,16.84818556]
[1734315474241,0.84012372,223.25,223.14,7.49808436]
[1734315474433,0.84012372,223.25,223.15,7.49808436]
[1734315475544,0.84012372,223.25,223.1,16.84818556]
[1734315475720,0.84012372,223.25,223.14,7.49808436]
[1734315476438,0.84012372,223.25,223.1,16.84818556]
[1734315476642,8.1318,223.24,223.1,16.84818556]
[1734315476844,0.84033779,223.23,223.1,16.84818556]
[1734315477143,0.84033779,223.23,223.12,7.49808436]
[1734315477341,0.84033779,223.23,223.11,7.49808436]
[1734315477945,0.84033779,223.23,223.12,7.49808436]
[1734315478614,0.84033779,223.23,223.13,7.49808436]
[1734315480356,0.84033779,223.23,223.15,7.49808436]
[1734315480655,0.84033779,223.23,223.16,7.49808436]
[1734315481070,0.84033779,223.23,223.15,7.49808436]
[1734315481222,0.84033779,223.23,223.14,7.49808436]
[1734315481626,0.84033779,223.23,223.16,7.49808436]
[1734315481830,0.84033779,223.23,223.1,17.52028553]
[1734315482050,7.9825,223.3,223.11,16.00984344]
[1734315482239,7.9825,223.3,223.26,7.49808436]
[1734315482564,6.3402,223.3,223.26,7.49808436]
[1734315482736,7.9825,223.35,223.26,7.49808436]
[1734315483064,0.83974342,223.34,223.3,7.49808436]
[1734315483240,6.3402,223.35,223.3,7.49808436]
[1734315483439,0.83957327,223.34,223.28,7.49808436]
[1734315483642,0.83957327,223.34,223.2,29.99233744]
[1734315483643,0.83957327,223.34,223.27,7.49808436]
[1734315483858,0.83957327,223.34,223.18,9.43551664]
[1734315484043,0.83957327,223.34,223.24,7.49808436]
[1734315484244,0.83957327,223.34,223.25,7.49808436]
[1734315484884,0.83957327,223.34,223.26,7.49808436]
[1734315485245,0.83957327,223.34,223.24,7.49808436]
[1734315485889,0.83957327,223.34,223.18,4.80464344]
[1734315486049,0.83957327,223.34,223.21,7.49808436]
[1734315486250,0.83957327,223.34,223.23,7.49808436]
[1734315486982,0.83957327,223.34,223.22,7.49808436]
[1734315487771,12.7998,223.33,223.14,6.98729945]
[1734315487965,0.84002653,223.32,223.2,11.8149538]
[1734315489559,11.1951,223.31,223.2,11.8149538]
[1734315489775,0.84011116,223.3,223.18,11.8149538]
[1734315489961,6.1859,223.29,223.18,11.8149538]
[1734315490163,0.84017083,223.28,223.18,11.8149538]
[1734315492255,0.84017083,223.28,223.16,11.8149538]
[1734315492459,1.5782,223.27,223.16,11.8149538]
[1734315492661,0.84026646,223.26,223.14,11.8149538]
[1734315493079,0.84026646,223.26,223.15,11.8149538]
[1734315493561,0.84026646,223.26,223.16,11.8149538]
[1734315494171,0.84026646,223.26,223.19,11.8149538]
[1734315496063,0.84026646,223.26,223.17,11.8149538]
[1734315496478,0.84026646,223.26,223.15,11.8149538]
[1734315498366,12.03816646,223.26,223.15,11.8149538]
[1734315498572,12.03816646,223.26,223.13,11.8149538]
[1734315501010,12.03816646,223.26,223.11,11.8149538]
[1734315501011,11.1987,223.24,223.11,11.8149538]
[1734315501308,0.84037444,223.23,223.11,11.8149538]
[1734315502015,11.1997,223.22,223.11,11.8149538]
[1734315502314,1.5921,223.2,223.1,16.84818556]
[1734315502474,7.48288946,223.19,223.09,0.5360558]
[1734315503515,7.48288946,223.19,223.09,12.3510096]
[1734315505786,7.48288946,223.19,223.12,11.8149538]
[1734315506605,7.48288946,223.19,223.09,0.5360558]
[1734315506810,7.48288946,223.19,223.11,11.8149538]
[1734315507322,7.48288946,223.19,223.1,11.8149538]
[1734315507488,7.48288946,223.19,223.09,12.3510096]
[1734315508238,7.48288946,223.19,223.09,0.5360558]
[1734315508516,7.48288946,223.19,223.09,12.3510096]
[1734315509997,7.48288946,223.19,223.1,11.8149538]
[1734315510707,7.48288946,223.19,223.09,12.3510096]
[1734315511712,7.48288946,223.19,223.09,0.5360558]
[1734315511911,7.48288946,223.19,223.09,12.3510096]
[1734315512986,7.48288946,223.19,223.09,0.5360558]
[1734315513915,18.68418946,223.19,223.09,0.5360558]
[1734315514898,7.48288946,223.19,223.11,11.8149538]
[1734315515108,7.48288946,223.19,223.12,11.8149538]
[1734315515316,7.48288946,223.19,223.11,11.8149538]
[1734315515514,7.48288946,223.19,223.09,12.3510096]
[1734315515816,7.48288946,223.19,223.1,11.8149538]
[1734315517205,7.48288946,223.19,223.09,12.3510096]
[1734315517892,7.48288946,223.19,223.09,0.5360558]
[1734315518422,11.2017,223.18,223.09,0.5360558]
[1734315518593,0.84046114,223.17,223.09,0.5360558]
[1734315521234,11.2027,223.16,223.09,0.5360558]
[1734315521411,0.84063323,223.15,223.09,0.5360558]
[1734315522302,7.9333,223.14,223.09,0.5360558]
[1734315522509,0.84074196,223.13,223.09,0.5360558]
[1734315523304,11.2047,223.12,223.09,0.5360558]
[1734315523519,0.84078052,223.11,223.09,0.5360558]
[1734315525423,11.2057,223.1,223.09,0.5360558]
[1734315525623,12.04656384,223.1,223.09,0.5360558]
[1734315526200,1.2495,223.09,222.88,11.2165]
[1734315526513,5.84103261,223.08,222.94,11.83644308]
[1734315527020,0.84103261,223.08,222.94,11.83644308]
[1734315527205,11.2072,223.07,222.94,11.83644308]
[1734315527399,0.84104434,223.06,222.94,11.83644308]
[1734315529619,0.84104434,223.06,222.87,2.72032119]
[1734315529620,0.84104434,223.06,222.95,11.83644308]
[1734315530329,0.84104434,223.06,222.96,11.83644308]
[1734315530532,0.84104434,223.06,223.02,11.83644308]
[1734315530723,0.84071791,223.08,223.03,11.83644308]
[1734315531124,0.84071791,223.08,223.04,11.83644308]
[1734315531326,0.84071791,223.08,223.05,11.83644308]
[1734315531740,1.5387,223.14,223.05,11.83644308]
[1734315531741,0.84061277,223.13,223.05,11.83644308]
[1734315534026,0.84061277,223.13,223.07,11.83644308]
[1734315534529,0.84061277,223.13,223.06,11.83644308]
[1734315534720,0.84061277,223.13,223.05,11.83644308]
[1734315534923,0.84061277,223.13,223.06,11.83644308]
[1734315536340,0.84061277,223.13,223.05,11.83644308]
[1734315536726,0.84061277,223.13,223.04,11.83644308]
[1734315537348,0.84061277,223.13,223.03,11.83644308]
[1734315537919,0.84061277,223.13,223.02,11.83644308]
[1734315538340,0.84061277,223.13,223.01,11.83644308]
[1734315538536,0.84061277,223.13,223.02,11.83644308]
[1734315538729,0.84061277,223.13,223.04,11.83644308]
[1734315538934,0.84061277,223.13,223.06,11.83644308]
[1734315539854,0.84061277,223.13,223.04,11.83644308]
[1734315540046,0.84061277,223.13,223.06,11.83644308]
[1734315540240,0.84051717,223.12,223.06,11.83644308]
[1734315540441,0.84051011,223.15,223.06,11.83644308]
[1734315540941,0.84051011,223.15,223.08,11.83644308]
[1734315541158,0.84051011,223.15,223.09,11.83644308]
[1734315541865,0.84051011,223.15,223.08,11.83644308]
[1734315542028,0.84051011,223.15,223.09,11.83644308]
[1734315542961,0.84051011,223.15,223.08,11.83644308]
[1734315543326,0.84051011,223.15,223.07,11.83644308]
[1734315543631,0.84051011,223.15,223.06,11.83644308]
[1734315544639,0.84051011,223.15,223.07,11.83644308]
[1734315545946,0.84051011,223.15,223.07,7.5710027]
[1734315546453,0.84051011,223.15,222.98,12.7573]
[1734315546641,0.84051011,223.15,223.05,7.5710027]
[1734315546841,0.84051011,223.15,223.06,7.5710027]
[1734315547863,0.84051011,223.15,223.09,7.5710027]
[1734315548242,0.84051011,223.15,223.08,7.5710027]
[1734315548437,0.84051011,223.15,223.0,11.2107]
[1734315548750,0.84051011,223.15,223.05,7.5710027]
[1734315548942,0.84051011,223.15,223.0,11.2107]
[1734315549139,0.84051011,223.15,223.04,7.5710027]
[1734315549559,0.84051011,223.15,223.05,7.5710027]
[1734315550659,0.84051011,223.15,223.04,7.5710027]
[1734315551239,0.84051011,223.15,223.0,11.2107]
[1734315551240,0.84051011,223.15,223.05,7.5710027]
[1734315551549,0.84051011,223.15,223.06,7.5710027]
[1734315552264,0.84051011,223.15,223.07,7.5710027]
[1734315552557,0.84051011,223.15,223.08,7.5710027]
[1734315553265,0.84051011,223.15,223.07,7.5710027]
[1734315554964,0.84051011,223.15,223.06,7.5710027]
[1734315556162,0.84051011,223.15,223.07,7.5710027]
[1734315556466,0.84051011,223.15,223.08,7.5710027]
[1734315559465,6.2364,223.16,223.09,7.5710027]
[1734315560189,6.2364,223.16,223.11,7.5710027]
[1734315560881,7.03719689,223.21,223.15,7.5710027]
[1734315561057,7.03719689,223.21,223.16,7.5710027]
[1734315561381,2.43635958,223.23,223.16,7.5710027]
[1734315561581,2.43635958,223.23,223.17,7.5710027]
[1734315561784,1.5962,223.23,223.17,7.5710027]
[1734315562254,0.84008658,223.22,223.17,7.5710027]
[1734315562984,0.84008658,223.22,223.11,11.2051]
[1734315563199,0.84008979,223.26,223.12,0.67201382]
[1734315563402,0.84008979,223.26,223.11,11.2051]
[1734315563694,0.84008979,223.26,223.18,7.5710027]
[1734315563898,0.84008979,223.26,223.2,7.5710027]
[1734315564182,7.24368256,223.27,223.22,7.5710027]
[1734315564387,0.83998256,223.27,223.23,7.5710027]
[1734315564779,0.83989167,223.31,223.23,7.5710027]
[1734315565365,0.83989167,223.31,223.15,1.6395]
[1734315565366,0.83989167,223.31,223.22,7.5710027]
[1734315565562,0.83989167,223.31,223.21,7.5710027]
[1734315565761,0.83989167,223.31,223.16,11.2026]
[1734315565972,0.83989167,223.31,223.19,7.5710027]
[1734315567393,0.83989167,223.31,223.16,11.2026]
[1734315567563,0.83989167,223.31,223.2,7.5710027]
[1734315567970,0.83989167,223.31,223.23,7.5710027]
[1734315569061,0.83989167,223.31,223.16,11.2026]
[1734315569062,0.83989167,223.31,223.24,7.5710027]
[1734315569265,0.83989167,223.31,223.27,7.5710027]
[1734315569457,0.83989167,223.31,223.26,7.5710027]
[1734315570075,0.83989167,223.31,223.27,7.5710027]
[1734315570284,6.5414,223.37,223.28,7.5710027]
[1734315570471,6.5414,223.37,223.2,30.95586812]
[1734315570472,1.6322,223.35,223.2,0.67185732]
[1734315570680,1.6322,223.35,223.21,7.5710027]
[1734315570681,0.83989546,223.34,223.21,7.5710027]
[1734315571494,0.83989546,223.34,223.23,7.5710027]
[1734315572470,0.83989546,223.34,223.24,7.5710027]
[1734315573093,0.83989546,223.34,223.23,7.5710027]
[1734315573596,0.33989546,223.34,223.23,7.5710027]
[1734315573966,0.33989546,223.34,223.23,11.81339525]
[1734315574882,0.33989546,223.34,223.24,11.81339525]
[1734315575504,0.33989546,223.34,223.23,11.81339525]
[1734315577409,0.33989546,223.34,223.24,11.81339525]